bitfinex/quotes_BTCUSD_20250711
["timestamp","ask_amount","ask_price","bid_price","bid_amount"]
[1752236841049,1.69490739,117850.0,117840.0,0.0034]
[1752236841468,1.60947746,117850.0,117840.0,0.0034]
[1752236842442,1.57877746,117850.0,117840.0,0.0034]
[1752236844125,1.54837746,117850.0,117840.0,0.0034]
[1752236844283,1.10129356,117850.0,117840.0,0.07235]
[1752236844885,1.10969551,117850.0,117840.0,0.07235]
[1752236845086,0.97857551,117850.0,117840.0,0.07235]
[1752236845331,1.10973551,117850.0,117840.0,0.07235]
[1752236846846,1.55743338,117850.0,117840.0,0.0357]
[1752236847050,1.1189227,117850.0,117840.0,0.0357]
[1752236847465,1.1189227,117850.0,117840.0,0.03873]
[1752236847668,0.66282288,117850.0,117840.0,0.03873]
[1752236847870,1.10133356,117850.0,117840.0,0.03873]
[1752236848083,1.10968274,117850.0,117840.0,0.03873]
[1752236849806,1.11020274,117850.0,117840.0,0.03873]
[1752236850633,1.11020274,117850.0,117840.0,0.04075]
[1752236850846,0.67169206,117850.0,117840.0,0.07225]
[1752236851055,1.11020274,117850.0,117840.0,0.07225]
[1752236853395,1.11020274,117850.0,117840.0,0.04075]
[1752236853800,1.11020274,117850.0,117840.0,0.03873]
[1752236854036,1.11020274,117850.0,117840.0,0.0357]
[1752236854237,1.11020274,117850.0,117830.0,0.0014]
[1752236854238,5.24230758,117840.0,117830.0,0.0014]
[1752236854439,6.33647887,117840.0,117830.0,0.0014]
[1752236854707,0.88127424,117830.0,117820.0,0.06763]
[1752236854911,1.09846417,117830.0,117820.0,0.06965]
[1752236855581,1.09846417,117830.0,117820.0,0.0646]
[1752236855791,1.09846417,117830.0,117820.0,0.06965]
[1752236855996,1.10699075,117830.0,117820.0,0.06965]
[1752236856209,0.85699075,117830.0,117820.0,0.06965]
[1752236856417,0.28668007,117830.0,117820.0,0.06965]
[1752236856623,1.11559748,117830.0,117820.0,0.06965]
[1752236856846,1.11559748,117830.0,117820.0,0.07165]
[1752236857029,1.1071109,117830.0,117820.0,0.07165]
[1752236857273,1.1071109,117830.0,117820.0,0.07265]
[1752236859757,1.1071109,117830.0,117820.0,0.04043]
[1752236861768,1.1071109,117830.0,117820.0,0.07103]
[1752236862174,1.1071109,117830.0,117820.0,0.04043]
[1752236863436,1.1071109,117830.0,117820.0,0.07503]
[1752236864034,1.1071109,117830.0,117820.0,0.04253]
[1752236864239,1.1071109,117830.0,117820.0,0.00843]
[1752236864577,1.1071109,117830.0,117820.0,0.04013]
[1752236864995,1.14419503,117830.0,117820.0,0.0054]
[1752236865178,1.1380109,117830.0,117820.0,0.0054]
[1752236865602,0.69950022,117830.0,117820.0,0.0054]
[1752236865818,1.1380109,117830.0,117820.0,0.0054]
[1752236866013,0.18672513,117820.0,117810.0,0.08378138]
[1752236866216,0.84274574,117820.0,117810.0,0.08588138]
[1752236866824,0.40423506,117820.0,117810.0,0.08378138]
[1752236867026,0.40423506,117820.0,117810.0,0.08588138]
[1752236867235,0.84274574,117820.0,117810.0,0.08588138]
[1752236868055,0.84274574,117820.0,117810.0,0.05338138]
[1752236868257,0.84274574,117820.0,117810.0,0.01660138]
[1752236868673,1.33856912,117820.0,117810.0,0.00811433]
[1752236868875,1.33856912,117820.0,117800.0,0.0024]
[1752236868876,0.90859381,117810.0,117800.0,0.0024]
[1752236869080,1.67133856,117810.0,117800.0,0.00185598]
[1752236869870,1.05528946,117800.0,117790.0,0.03144]
[1752236870153,1.29871501,117800.0,117790.0,0.03442]
[1752236870352,1.29921434,117800.0,117790.0,0.03442]
[1752236870723,0.86070366,117800.0,117790.0,0.06722]
[1752236871084,0.86922213,117800.0,117790.0,0.06722]
[1752236871308,1.30773281,117800.0,117790.0,0.06722]
[1752236871952,1.30773281,117800.0,117790.0,0.03652]
[1752236871953,1.30873281,117800.0,117790.0,0.03652]
[1752236872182,1.30873281,117800.0,117790.0,0.03442]
[1752236872412,1.31073281,117800.0,117790.0,0.00342]
[1752236872853,1.31073281,117800.0,117790.0,0.00044]
[1752236873061,0.42828324,117790.0,117780.0,0.00788]
[1752236873266,1.08518385,117790.0,117780.0,0.0049]
[1752236873751,1.08518385,117790.0,117780.0,0.04058]
[1752236874294,1.08518385,117790.0,117780.0,0.0049]
[1752236874706,1.08518385,117790.0,117780.0,0.04108]
[1752236875327,0.17829837,117780.0,117770.0,0.03448]
[1752236875555,0.83515898,117780.0,117770.0,0.06658]
[1752236875746,0.83515898,117780.0,117770.0,0.06868]
[1752236876612,0.83515898,117780.0,117770.0,0.06968]
[1752236876866,0.83515898,117780.0,117770.0,0.07068]
[1752236877249,1.10819001,117780.0,117770.0,0.07068]
[1752236877662,1.10819001,117780.0,117770.0,0.06968]
[1752236878268,1.10819001,117780.0,117770.0,0.06868]
[1752236878477,1.10919001,117780.0,117770.0,0.06868]
[1752236878685,1.10069975,117780.0,117770.0,0.06868]
[1752236878891,1.11768041,117780.0,117770.0,0.06868]
[1752236879188,1.11780041,117780.0,117770.0,0.06868]
[1752236880840,1.11780041,117780.0,117770.0,0.06968]
[1752236881267,1.10831023,117780.0,117770.0,0.06968]
[1752236881683,1.10831023,117780.0,117770.0,0.07068]
[1752236882396,1.10831023,117780.0,117770.0,0.00398]
[1752236882619,1.10831023,117780.0,117770.0,0.03338]
[1752236882825,0.67079955,117780.0,117770.0,0.03548]
[1752236882983,1.10931023,117780.0,117770.0,0.06848]
[1752236884568,1.10081961,117780.0,117770.0,0.06848]
[1752236884738,1.12628987,117780.0,117770.0,0.06848]
[1752236885087,1.11780041,117780.0,117770.0,0.06848]
[1752236885289,1.1093103,117780.0,117770.0,0.06848]
[1752236885495,1.09981997,117780.0,117770.0,0.06848]
[1752236885751,1.09981997,117780.0,117770.0,0.06948]
[1752236886160,1.09981997,117780.0,117770.0,0.07048]
[1752236886600,1.09981997,117780.0,117770.0,0.06848]
[1752236886998,0.96777997,117780.0,117770.0,0.06848]
[1752236887204,1.10085997,117780.0,117770.0,0.06848]
[1752236888352,1.10085997,117780.0,117770.0,0.0634]
[1752236888561,1.10085997,117780.0,117770.0,0.03548]
[1752236888779,1.10085997,117780.0,117770.0,0.06718]
[1752236889180,0.66134929,117780.0,117770.0,0.06818]
[1752236889405,1.09985997,117780.0,117770.0,0.06818]
[1752236889843,1.09985997,117780.0,117770.0,0.06718]
[1752236890064,1.09977997,117780.0,117770.0,0.06718]
[1752236890268,0.66226929,117780.0,117770.0,0.06718]
[1752236890477,1.10077997,117780.0,117770.0,0.06718]
[1752236892521,0.66226929,117780.0,117770.0,0.06718]
[1752236892875,1.10077997,117780.0,117770.0,0.06718]
[1752236896610,0.67075947,117780.0,117770.0,0.06718]
[1752236896918,1.10927015,117780.0,117770.0,0.06718]
[1752236897539,0.67075947,117780.0,117770.0,0.06718]
[1752236897738,1.10927015,117780.0,117770.0,0.06718]
[1752236898930,0.67075947,117780.0,117770.0,0.06718]
[1752236899095,1.10927015,117780.0,117770.0,0.06718]
[1752236904428,1.10077997,117780.0,117770.0,0.03338]
[1752236905093,0.96777997,117780.0,117770.0,0.03551]
[1752236905309,1.10057997,117780.0,117770.0,0.03551]
[1752236906996,1.12328957,117780.0,117760.0,0.0024]
[1752236907252,0.90250758,117770.0,117760.0,0.00558]
[1752236907507,0.88871083,117770.0,117760.0,0.00558]
[1752236908148,0.88871083,117770.0,117760.0,0.00658]
[1752236908688,0.88871083,117770.0,117760.0,0.0024]
[1752236908898,0.88871083,117770.0,117760.0,0.0034]
[1752236909107,0.76444181,117770.0,117760.0,0.00871]
[1752236909309,1.116617,117770.0,117760.0,0.07051]
[1752236909715,1.116617,117770.0,117760.0,0.07151]
[1752236910136,1.116617,117770.0,117760.0,0.07051]
[1752236910514,1.116617,117770.0,117760.0,0.07151]
[1752236913322,0.67810632,117770.0,117760.0,0.07151]
[1752236913518,0.54526632,117770.0,117760.0,0.07151]
[1752236913754,1.116617,117770.0,117760.0,0.07151]
[1752236916469,1.10812609,117770.0,117760.0,0.07151]
[1752236916682,1.09963511,117770.0,117760.0,0.07151]
[1752236917024,1.09963511,117770.0,117760.0,0.03991]
[1752236918454,1.09955511,117770.0,117760.0,0.03991]
[1752236920896,1.09955511,117770.0,117760.0,0.00758]
[1752236921667,1.09955511,117770.0,117760.0,0.03758]
[1752236925929,1.09955511,117770.0,117760.0,0.00758]
[1752236926695,1.16075511,117770.0,117760.0,0.0044]
[1752236926900,1.16067511,117770.0,117760.0,0.0044]
[1752236927692,1.18616311,117770.0,117760.0,0.0044]
[1752236928510,1.15596311,117770.0,117760.0,0.0044]
[1752236930204,1.12496311,117770.0,117760.0,0.0044]
[1752236930672,1.12484311,117770.0,117760.0,0.0044]
[1752236931972,1.12484311,117770.0,117760.0,0.00739]
[1752236932142,1.12484311,117770.0,117760.0,0.0044]
[1752236932365,0.30377243,117770.0,117760.0,0.04064]
[1752236932563,1.10788602,117770.0,117760.0,0.07114]
[1752236933182,1.09939511,117770.0,117760.0,0.07114]
[1752236933385,0.66088443,117770.0,117760.0,0.07114]
[1752236933584,1.09939511,117770.0,117760.0,0.07114]
[1752236940548,1.09939511,117770.0,117760.0,0.03869]
[1752236940749,1.09939511,117770.0,117760.0,0.00739]
[1752236940986,1.15651446,117770.0,117760.0,0.00739]
[1752236941251,1.15651446,117770.0,117760.0,0.0044]
[1752236941452,1.02391446,117770.0,117760.0,0.0044]
[1752236941581,1.15619446,117770.0,117760.0,0.0044]
[1752236942411,1.18859446,117770.0,117760.0,0.0044]
[1752236943086,1.15905907,117770.0,117760.0,0.00377769]
[1752236945045,1.12665907,117770.0,117760.0,0.00377769]
[1752236949029,1.15735907,117770.0,117760.0,0.00377769]
[1752236949432,1.12665907,117770.0,117760.0,0.00377769]
[1752236952212,0.99437907,117770.0,117760.0,0.00890769]
[1752236952419,0.64598358,117770.0,117760.0,0.07280769]
[1752236952666,1.08659022,117770.0,117760.0,0.07280769]
[1752236953047,1.10113107,117770.0,117760.0,0.07280769]
[1752236953485,0.66052443,117770.0,117760.0,0.07280769]
[1752236953686,1.10113107,117770.0,117760.0,0.07280769]
[1752236957372,0.66052443,117770.0,117760.0,0.07280769]
[1752236957704,1.10113107,117770.0,117760.0,0.07280769]
[1752236958678,0.66052443,117770.0,117760.0,0.07280769]
[1752236958844,1.10113107,117770.0,117760.0,0.07280769]
[1752236961478,0.66052443,117770.0,117760.0,0.07280769]
[1752236961692,1.10113107,117770.0,117760.0,0.07280769]
[1752236963727,0.66052443,117770.0,117760.0,0.07280769]
[1752236963949,1.10113107,117770.0,117760.0,0.07280769]
[1752236965024,1.12661607,117770.0,117760.0,0.07280769]
[1752236965857,0.68600943,117770.0,117760.0,0.07280769]
[1752236966061,1.12661607,117770.0,117760.0,0.07280769]
[1752236968603,0.68600943,117770.0,117760.0,0.07280769]
[1752236969084,1.12661607,117770.0,117760.0,0.07280769]
[1752236969298,0.68600943,117770.0,117760.0,0.07280769]
[1752236969728,1.12661607,117770.0,117760.0,0.07280769]
[1752236970844,1.12661607,117770.0,117760.0,0.04090769]
[1752236971811,1.12661607,117770.0,117760.0,0.00377769]
[1752236973221,1.12661607,117770.0,117760.0,0.00694769]
[1752236973918,1.12661607,117770.0,117760.0,0.00377769]
[1752236975791,1.12661607,117770.0,117760.0,0.00694769]
[1752236976502,1.12661607,117770.0,117760.0,0.03924769]
[1752236976969,1.18158776,117770.0,117760.0,0.07160769]
[1752236978111,0.68600943,117770.0,117760.0,0.07160769]
[1752236978378,1.18158776,117770.0,117760.0,0.07160769]
[1752236978614,1.18158776,117770.0,117760.0,0.36065069]
[1752236978844,0.68600943,117770.0,117760.0,0.36065069]
[1752236979069,1.12653855,117770.0,117760.0,0.36065069]
[1752236982576,1.12653855,117770.0,117760.0,0.33025069]
[1752236987570,1.10105355,117770.0,117760.0,0.29282069]
[1752236992997,1.10105355,117770.0,117760.0,0.29606069]
[1752236996598,1.10105355,117770.0,117760.0,0.32776069]
[1752236998975,1.15616879,117770.0,117760.0,0.32776069]
[1752236999425,1.15616879,117770.0,117760.0,0.36033069]
[1752237000528,1.02392879,117770.0,117760.0,0.36033069]
[1752237000672,0.4120851,117770.0,117760.0,0.36033069]
[1752237000920,1.1492387,117770.0,117760.0,0.36033069]
[1752237001672,1.0178787,117770.0,117760.0,0.36033069]
[1752237001816,1.1492387,117770.0,117760.0,0.36033069]
[1752237002021,1.14074787,117770.0,117760.0,0.36033069]
[1752237004378,1.15528872,117770.0,117760.0,0.36033069]
[1752237004539,1.15528872,117770.0,117760.0,0.32983069]
[1752237005272,1.10018096,117770.0,117760.0,0.36053069]
[1752237007277,0.40964436,117770.0,117760.0,0.36053069]
[1752237007486,1.10018096,117770.0,117760.0,0.36053069]
[1752237010923,0.65964436,117770.0,117760.0,0.36053069]
[1752237011138,1.10018096,117770.0,117760.0,0.36053069]
[1752237013620,0.47528055,117770.0,117760.0,0.36053069]
[1752237013805,0.67033573,117770.0,117760.0,0.36053069]
[1752237014242,0.66184511,117770.0,117760.0,0.36053069]
[1752237015749,1.09389102,117770.0,117760.0,0.36053069]
[1752237016576,0.65335442,117770.0,117760.0,0.36053069]
[1752237016782,1.09389102,117770.0,117760.0,0.36053069]
[1752237017223,0.96277102,117770.0,117760.0,0.36053069]
[1752237017428,1.09389102,117770.0,117760.0,0.36053069]
[1752237018359,0.65335442,117770.0,117760.0,0.36053069]
[1752237018567,1.09389102,117770.0,117760.0,0.36053069]
[1752237019414,0.52223442,117770.0,117760.0,0.36053069]
[1752237019623,0.66184511,117770.0,117760.0,0.36053069]
[1752237019927,0.67033623,117770.0,117760.0,0.36053069]
[1752237020335,0.67029623,117770.0,117760.0,0.36053069]
[1752237021174,0.65649993,117770.0,117760.0,0.36053069]
[1752237021590,0.64800881,117770.0,117760.0,0.36053069]
[1752237021976,0.26698116,117770.0,117760.0,0.36053069]
[1752237022190,0.40655192,117770.0,117760.0,0.36053069]
[1752237022414,0.39806116,117770.0,117760.0,0.36053069]
[1752237022605,0.25,117770.0,117760.0,0.80296729]
[1752237022814,0.38108,117770.0,117760.0,0.80296729]
[1752237023023,0.38108,117770.0,117760.0,0.36243069]
[1752237023631,0.38957055,117770.0,117760.0,0.36243069]
[1752237024235,0.39806124,117770.0,117760.0,0.36243069]
[1752237024617,0.38957055,117770.0,117760.0,0.36243069]
[1752237024829,0.39806124,117770.0,117760.0,0.36243069]
[1752237025040,0.38957055,117770.0,117760.0,0.36243069]
[1752237025161,0.39806124,117770.0,117760.0,0.36243069]
[1752237026051,0.38108,117770.0,117760.0,0.36243069]
[1752237026959,0.38957055,117770.0,117760.0,0.36243069]
[1752237027589,0.38108,117770.0,117760.0,0.36243069]
[1752237027936,0.38957055,117770.0,117760.0,0.36243069]
[1752237028837,0.39806124,117770.0,117760.0,0.36243069]
[1752237030121,0.79806124,117770.0,117760.0,0.36243069]
[1752237030347,0.98486565,117770.0,117760.0,0.36243069]
[1752237030796,1.41691213,117770.0,117760.0,0.36243069]
[1752237031240,1.16691213,117770.0,117760.0,0.36243069]
[1752237033135,0.72637553,117770.0,117760.0,0.36243069]
[1752237033329,1.16691213,117770.0,117760.0,0.36243069]
[1752237033968,1.16691213,117770.0,117760.0,0.30061069]
[1752237034377,1.1584213,117770.0,117760.0,0.30061069]
[1752237035294,0.40849083,117770.0,117760.0,0.30061069]
[1752237035495,0.54806145,117770.0,117760.0,0.30061069]
[1752237035830,0.55655236,117770.0,117760.0,0.30061069]
[1752237036240,0.54806145,117770.0,117760.0,0.30061069]
[1752237036469,0.72637496,117770.0,117760.0,0.30061069]
[1752237036958,0.32637496,117770.0,117760.0,0.30061069]
[1752237037726,0.15655243,117770.0,117760.0,0.30061069]
[1752237038150,0.32637496,117770.0,117760.0,0.30061069]
[1752237038359,0.32637539,117770.0,117760.0,0.30061069]
[1752237039654,1.07591462,117770.0,117760.0,0.30061069]
[1752237040340,1.06742364,117770.0,117760.0,0.26741069]
[1752237040775,1.06742364,117770.0,117760.0,0.29761069]
[1752237041006,1.46742364,117770.0,117760.0,0.26741069]
[1752237042160,1.46742364,117770.0,117760.0,0.29881069]
[1752237042161,1.02688704,117770.0,117760.0,0.29881069]
[1752237042400,1.46742364,117770.0,117760.0,0.29881069]
[1752237044029,1.45362756,117770.0,117760.0,0.29881069]
[1752237045147,1.01309096,117770.0,117760.0,0.29881069]
[1752237045300,1.45362756,117770.0,117760.0,0.29881069]
[1752237046505,1.45362756,117770.0,117760.0,0.26741069]
[1752237046713,1.53905749,117770.0,117760.0,0.23424069]
[1752237046914,1.21789834,117770.0,117760.0,0.23100069]
[1752237047711,1.10061442,117770.0,117760.0,0.23100069]
[1752237047979,1.23165442,117770.0,117760.0,0.23100069]
[1752237048182,1.23265442,117770.0,117760.0,0.23100069]
[1752237053587,0.79211782,117770.0,117760.0,0.23100069]
[1752237053720,1.23265442,117770.0,117760.0,0.23100069]
[1752237064137,1.16516096,117770.0,117760.0,0.23100069]
[1752237065121,0.72462436,117770.0,117760.0,0.23100069]
[1752237065297,1.16516096,117770.0,117760.0,0.23100069]
[1752237065691,0.69162436,117770.0,117760.0,0.23100069]
[1752237065922,0.96982096,117770.0,117760.0,0.23100069]
[1752237066129,0.27928436,117770.0,117760.0,0.29882069]
[1752237066298,0.66032436,117770.0,117760.0,0.29882069]
[1752237066515,1.10086096,117770.0,117760.0,0.29882069]
[1752237067168,0.96982096,117770.0,117760.0,0.29882069]
[1752237067367,1.10090096,117770.0,117760.0,0.29882069]
[1752237069117,0.66036436,117770.0,117760.0,0.29882069]
[1752237069313,1.10090096,117770.0,117760.0,0.29882069]
[1752237069521,0.66036436,117770.0,117760.0,0.29882069]
[1752237069751,1.10090096,117770.0,117760.0,0.29882069]
[1752237070396,0.66036436,117770.0,117760.0,0.29882069]
[1752237070737,1.10090096,117770.0,117760.0,0.29882069]
[1752237074414,1.08710362,117770.0,117760.0,0.29882069]
[1752237077468,0.64656702,117770.0,117760.0,0.29882069]
[1752237077672,1.08710362,117770.0,117760.0,0.29882069]
[1752237079922,0.64656702,117770.0,117760.0,0.29882069]
[1752237080138,1.08710362,117770.0,117760.0,0.29882069]
[1752237080764,0.64656702,117770.0,117760.0,0.29882069]
[1752237080972,1.14211659,117770.0,117760.0,0.29882069]
[1752237082991,1.14207659,117770.0,117760.0,0.29882069]
[1752237084268,1.12827942,117770.0,117760.0,0.29882069]
[1752237084731,0.63272985,117770.0,117760.0,0.29882069]
[1752237084941,1.12827942,117770.0,117760.0,0.29882069]
[1752237085373,0.25625246,117770.0,117760.0,0.29882069]
[1752237085598,0.64578351,117770.0,117760.0,0.29882069]
[1752237085811,1.14133308,117770.0,117760.0,0.29882069]
[1752237086637,1.14033308,117770.0,117760.0,0.29882069]
[1752237087066,1.08524536,117770.0,117760.0,0.29882069]
[1752237087266,0.64478351,117770.0,117760.0,0.29882069]
[1752237087478,1.08524536,117770.0,117760.0,0.29882069]
[1752237088010,0.64478351,117770.0,117760.0,0.29882069]
[1752237088215,1.08524536,117770.0,117760.0,0.29882069]
[1752237089946,1.08524536,117770.0,117760.0,0.29982069]
[1752237093347,0.64478351,117770.0,117760.0,0.29982069]
[1752237093540,0.33542993,117770.0,117760.0,0.29982069]
[1752237093677,0.66176475,117770.0,117760.0,0.29982069]
[1752237093872,0.67025565,117770.0,117760.0,0.29982069]
[1752237094284,0.58482572,117770.0,117760.0,0.29982069]
[1752237094734,0.57633517,117770.0,117760.0,0.29982069]
[1752237095194,0.58482629,117770.0,117760.0,0.29982069]
[1752237095394,0.45378629,117770.0,117760.0,0.29982069]
[1752237095912,0.58482629,117770.0,117760.0,0.29982069]
[1752237096349,0.58482615,117770.0,117760.0,0.29982069]
[1752237097335,0.98482615,117770.0,117760.0,0.29982069]
[1752237100806,0.97633539,117770.0,117760.0,0.29982069]
[1752237100961,1.41679724,117770.0,117760.0,0.29982069]
[1752237103507,0.97633539,117770.0,117760.0,0.29982069]
[1752237103708,1.41679724,117770.0,117760.0,0.29982069]
[1752237103941,0.79802174,117770.0,117760.0,0.29982069]
[1752237104164,0.97633539,117770.0,117760.0,0.29982069]
[1752237104379,0.72633539,117770.0,117760.0,0.29982069]
[1752237104855,0.72633532,117770.0,117760.0,0.29982069]
[1752237106806,0.65849062,117770.0,117760.0,0.29982069]
[1752237107040,0.79802145,117770.0,117760.0,0.29982069]
[1752237107288,0.80651236,117770.0,117760.0,0.29982069]
[1752237108207,0.80651229,117770.0,117760.0,0.29982069]
[1752237109113,1.30195627,117770.0,117760.0,0.29982069]
[1752237109337,0.98482579,117770.0,117760.0,0.29982069]
[1752237109562,1.48026985,117770.0,117760.0,0.29982069]
[1752237110228,1.30195627,117770.0,117760.0,0.29982069]
[1752237110431,1.31044725,117770.0,117760.0,0.29982069]
[1752237110567,1.31044718,117770.0,117760.0,0.29982069]
[1752237110768,1.31893823,117770.0,117760.0,0.29982069]
[1752237110969,1.31044718,117770.0,117760.0,0.29982069]
[1752237111834,1.48876076,117770.0,117760.0,0.29982069]
[1752237112032,1.48026971,117770.0,117760.0,0.29982069]
[1752237112196,1.31044725,117770.0,117760.0,0.29982069]
[1752237112424,1.4887609,117770.0,117760.0,0.29982069]
[1752237112631,1.48026978,117770.0,117760.0,0.29982069]
[1752237113720,1.4887609,117770.0,117760.0,0.29982069]
[1752237114293,1.48026978,117770.0,117760.0,0.29982069]
[1752237114506,1.08026978,117770.0,117760.0,0.29982069]
[1752237114803,0.40651221,117770.0,117760.0,0.29982069]
[1752237115058,0.91044725,117770.0,117760.0,0.29982069]
[1752237115286,1.48026978,117770.0,117760.0,0.29982069]
[1752237115515,1.48876083,117770.0,117760.0,0.29982069]
[1752237115730,1.30195627,117770.0,117760.0,0.29982069]
[1752237115954,0.65849062,117770.0,117760.0,0.29982069]
[1752237116190,1.29342544,117770.0,117760.0,0.29982069]
[1752237116419,1.29342537,117770.0,117760.0,0.29982069]
[1752237116858,1.3019162,117770.0,117760.0,0.29982069]
[1752237117705,0.65,117770.0,117760.0,0.29982069]
[1752237117914,0.381,117770.0,117760.0,0.79526475]
[1752237118128,0.25,117770.0,117760.0,0.79526475]
[1752237118342,0.381,117770.0,117760.0,0.79526475]
[1752237118998,0.131,117770.0,117760.0,0.74015943]
[1752237119213,0.131,117770.0,117760.0,0.29982069]
[1752237122876,0.381,117770.0,117760.0,0.29982069]
[1752237123820,0.38949047,117770.0,117760.0,0.29982069]
[1752237124066,0.381,117770.0,117760.0,0.29982069]
[1752237124516,0.131,117770.0,117760.0,0.29982069]
[1752237129068,0.11168831,117770.0,117760.0,0.29982069]
[1752237133895,0.11168831,117770.0,117760.0,0.74015943]
[1752237134337,0.09789429,117770.0,117760.0,0.74015943]
[1752237134740,0.09789429,117770.0,117760.0,0.29982069]
[1752237134942,0.09789429,117770.0,117760.0,0.74015943]
[1752237135929,0.09789429,117770.0,117760.0,0.74865127]
[1752237136129,0.09789429,117770.0,117760.0,0.74015943]
[1752237136459,0.09789429,117770.0,117760.0,0.74865127]
[1752237136667,0.09789429,117770.0,117760.0,0.29982069]
[1752237136865,0.25,117780.0,117760.0,0.67745943]
[1752237137064,0.38096,117780.0,117770.0,0.06586278]
[1752237137271,0.38096,117780.0,117770.0,0.06797278]
[1752237138665,0.38196,117780.0,117770.0,0.06797278]
[1752237139024,0.38196,117780.0,117770.0,0.56328604]
[1752237139232,0.38196,117780.0,117770.0,0.56116326]
[1752237139820,0.251,117780.0,117770.0,0.56116326]
[1752237140038,0.13196,117780.0,117770.0,0.56116326]
[1752237141089,0.13096,117780.0,117770.0,0.56116326]
[1752237141841,0.13096,117780.0,117770.0,0.5698326]
[1752237142447,0.13296,117790.0,117780.0,0.0638]
[1752237142648,0.13296,117790.0,117780.0,0.56628586]
[1752237142936,0.13296,117790.0,117780.0,0.56416326]
[1752237144130,0.002,117790.0,117780.0,0.23865811]
[1752237144342,0.00023668,117790.0,117780.0,1.05947652]
[1752237144754,0.00023668,117790.0,117780.0,0.56416326]
[1752237145367,0.00023668,117790.0,117780.0,0.06885]
[1752237145591,0.00023668,117790.0,117780.0,0.56416326]
[1752237145977,0.00023668,117790.0,117780.0,0.56516326]
[1752237146393,0.38145933,117800.0,117790.0,0.0621]
[1752237146394,0.38994764,117800.0,117790.0,0.0621]
[1752237146593,0.38994764,117800.0,117790.0,0.06715]
[1752237147397,0.38145933,117800.0,117790.0,0.06715]
[1752237147798,0.38994771,117800.0,117790.0,0.06715]
[1752237148004,0.38145933,117800.0,117790.0,0.06715]
[1752237148805,0.38994771,117800.0,117790.0,0.06715]
[1752237149042,0.78145933,117800.0,117790.0,0.06715]
[1752237149383,0.78994764,117800.0,117790.0,0.56246326]
[1752237150378,0.79843609,117800.0,117790.0,0.56246326]
[1752237150584,0.78994764,117800.0,117790.0,0.56246326]
[1752237151487,0.78145933,117800.0,117790.0,0.56246326]
[1752237151709,0.78145933,117800.0,117790.0,0.06715]
[1752237151922,0.78994771,117800.0,117790.0,0.56246326]
[1752237152133,0.78145933,117800.0,117790.0,0.56246326]
[1752237153383,0.65049933,117800.0,117790.0,0.06715]
[1752237154027,0.25049933,117800.0,117790.0,0.56246326]
[1752237154564,0.26048759,117810.0,117800.0,0.0632]
[1752237154774,0.26048759,117810.0,117800.0,0.56067305]
[1752237154980,0.26048759,117810.0,117800.0,0.56361305]
[1752237154981,0.26897532,117810.0,117800.0,0.56361305]
[1752237155133,0.26048759,117810.0,117800.0,0.56361305]
[1752237155351,0.2689754,117810.0,117800.0,0.56361305]
[1752237155735,0.27746335,117810.0,117800.0,0.56361305]
[1752237155936,0.27746342,117810.0,117800.0,0.06829979]
[1752237156155,0.27746335,117810.0,117800.0,0.06829979]
[1752237156768,0.19522822,117810.0,117800.0,0.06829979]
[1752237156983,0.02546335,117810.0,117800.0,0.03659979]
[1752237157955,0.20371631,117810.0,117800.0,0.03659979]
[1752237158158,0.19522822,117810.0,117800.0,0.03659979]
[1752237158395,0.0169754,117810.0,117800.0,0.03659979]
[1752237158594,0.02546335,117810.0,117800.0,0.06969979]
[1752237159000,0.02546328,117810.0,117800.0,0.06969979]
[1752237159213,0.0169754,117810.0,117800.0,0.06969979]
[1752237159633,0.0169754,117810.0,117800.0,0.07182203]
[1752237160003,0.00848759,117810.0,117800.0,0.07182203]
[1752237160189,0.01697532,117810.0,117800.0,0.07182203]
[1752237160393,0.0254632,117810.0,117800.0,0.07182203]
[1752237160601,0.01697532,117810.0,117800.0,0.07182203]
[1752237161888,0.0254632,117810.0,117800.0,0.07182203]
[1752237162296,0.01697539,117810.0,117800.0,0.07182203]
[1752237162948,0.01697547,117810.0,117800.0,0.07182203]
[1752237163150,0.00848766,117810.0,117800.0,0.07182203]
[1752237163592,0.01697554,117810.0,117800.0,0.07182203]
[1752237164207,0.01697547,117810.0,117800.0,0.07182203]
[1752237164834,0.01697539,117810.0,117800.0,0.07182203]
[1752237165044,0.02546327,117810.0,117800.0,0.07182203]
[1752237165964,0.01697539,117810.0,117800.0,0.07182203]
[1752237167234,0.25,117820.0,117810.0,0.4026]
[1752237167440,0.38092,117820.0,117810.0,0.84781402]
[1752237167620,0.38092,117820.0,117810.0,0.40774]
[1752237168485,0.251,117820.0,117810.0,0.40774]
[1752237168697,0.38192,117820.0,117810.0,0.41614335]
[1752237168915,0.38292,117820.0,117810.0,0.41614335]
[1752237171398,0.252,117820.0,117810.0,0.41614335]
[1752237172017,0.002,117820.0,117810.0,0.41614335]
[1752237172945,0.002,117820.0,117810.0,0.67794335]
[1752237173925,0.001,117820.0,117810.0,1.11801737]
[1752237174341,1.38918366,117830.0,117810.0,1.11801737]
[1752237174539,1.39767003,117830.0,117820.0,0.03375]
[1752237174745,1.38918366,117830.0,117820.0,0.03584]
[1752237175024,1.38918359,117830.0,117820.0,0.03584]
[1752237175450,1.39766996,117830.0,117820.0,0.03584]
[1752237175656,1.38918359,117830.0,117820.0,0.00514]
[1752237175863,1.39018359,117830.0,117820.0,0.00514]
[1752237176093,1.39018359,117830.0,117820.0,0.03584]
[1752237176297,1.39018352,117830.0,117820.0,0.03584]
[1752237176508,1.38169737,117830.0,117820.0,0.03584]
[1752237177528,0.98169737,117830.0,117820.0,0.03584]
[1752237177651,0.99018359,117830.0,117820.0,0.06684]
[1752237177847,0.98169737,117830.0,117820.0,0.06684]
[1752237178084,0.85077737,117830.0,117820.0,0.06684]
[1752237178457,0.85077737,117830.0,117820.0,0.5092359]
[1752237178458,0.10767737,117830.0,117820.0,0.5092359]
[1752237178659,0.003,117830.0,117820.0,0.50711402]
[1752237179119,0.003,117830.0,117820.0,0.56190101]
[1752237179562,0.003,117830.0,117820.0,0.06704]
[1752237179857,0.004,117830.0,117820.0,0.56402289]
[1752237180073,0.004,117830.0,117820.0,0.56190101]
[1752237180293,0.003,117830.0,117820.0,0.56190101]
[1752237180790,0.003,117830.0,117820.0,0.84254367]
[1752237181232,0.003,117830.0,117820.0,1.21647952]
[1752237181451,0.003,117830.0,117820.0,1.02226729]
[1752237181657,0.003,117830.0,117820.0,1.2005052]
[1752237181891,0.002,117830.0,117820.0,1.2005052]
[1752237182115,0.002,117830.0,117820.0,1.01377977]
[1752237182337,0.002,117830.0,117820.0,1.19201775]
[1752237182571,0.002,117830.0,117820.0,1.02226729]
[1752237182795,0.002,117830.0,117820.0,1.2005052]
[1752237183024,0.47419681,117850.0,117830.0,0.0622]